{"text_format":"1","workbook":"xlsx","n_sheets":8,"sheets":["Form 120P-WA-NMF","Multiple Sites","Option to Assign Payment","HVAC & Water Heating Equipment","Foodservice Equipment","Admin Tools","Eligible Spaces","Lookups"],"not_rendered":{"charts":0,"images":11,"macros":1,"external_links":2,"defined_names":30,"comments":0,"pivot_tables":0},"unopened":[],"bounds":{"document_bytes":16777216,"sheet_cells":100000,"rows_first":2000,"rows_last":500,"rows_between":2000,"halvings":0,"cell_chars":16384,"cell_head_chars":4096},"cells_cut":0,"cells_raw":0,"read":"whole","date_system":"1900"}

{"sheet":"Form 120P-WA-NMF","index":0,"n_rows":74,"n_cols":43,"rows_kept":74,"cut":false,"hidden":false,"merged":[[43,21,43,24],[16,21,16,38],[19,21,19,29],[34,21,34,38],[25,21,25,28],[25,30,25,38],[13,21,13,38],[9,21,9,23],[9,24,9,29],[9,30,9,32],[9,33,9,38],[141,23,143,38],[19,31,19,38],[22,21,22,28],[22,29,22,32],[22,33,22,34],[22,36,22,38],[137,23,140,38],[40,21,40,26],[40,27,40,38],[43,25,43,38],[68,1,68,38],[69,1,69,30],[71,1,71,27],[71,28,71,38],[47,1,47,19],[49,16,49,19],[64,2,64,15],[64,17,64,32],[64,34,64,37],[55,11,55,14],[57,11,57,14],[61,1,61,38],[62,2,62,38],[55,7,55,9],[57,7,57,9],[59,7,59,9],[55,1,55,6],[57,1,57,6],[52,1,52,9],[52,11,52,18],[59,1,59,6],[49,30,49,38],[51,30,51,38],[53,1,53,38],[51,1,51,9],[49,9,49,12],[49,13,49,14],[51,11,51,19],[49,1,49,8]]}
[]
[null,"New Multifamily Standard Incentives - NW Natural Washington"]
[null,"Commercial Buildings | Incentive Application | Form 120P-WA-NMF"]
[]
[null,"To be completed by Participant"]
[]
[null,"TRC is a Program Management Contractor for Energy Trust of Oregon."]
[]
[null,null,null,null,null,null,null,null,null,null,null,null,null,null,null,null,null,null,null,null,null,"Program Use Only",null,null,null,null,null,null,null,null,null,null,null,null,null,null,null,null,{"$f":"Version","v":"v2024.2"}]
[null,null,null,null,null,null,null,null,null,null,null,null,null,null,null,null,null,null,null,null,null,"Reference ID",null,null,null,null,null,null,null,null,"PT ID"]
[]
[null,null,null,null,null,null,null,null,null,null,null,null,null,null,null,null,null,null,null,null,null,"Participant Information"]
[]
[null,null,null,null,null,null,null,null,null,null,null,null,null,null,null,null,null,null,null,null,null," "]
[null,null,null,null,null,null,null,null,null,null,null,null,null,null,null,null,null,null,null,null,null,"Legal Business Name (must match Participant's submitted W-9)"]
[]
[]
[null,null,null,null,null,null,null,null,null,null,null,null,null,null,null,null,null,null,null,null,null,"Assumed Business Name or DBA"]
[]
[]
[null,null,null,null,null,null,null,null,null,null,null,null,null,null,null,null,null,null,null,null,null,"Contact Name",null,null,null,null,null,null,null,null,null,"Title"]
[]
[]
[null,null,null,null,null,null,null,null,null,null,null,null,null,null,null,null,null,null,null,null,null,"Participant Mailing Address",null,null,null,null,null,null,null,"City",null,null,null,"State",null,null,"Zip"]
[]
[]
[null,null,null,null,null,null,null,null,null,null,null,null,null,null,null,null,null,null,null,null,null,"Primary Phone",null,null,null,null,null,null,null,null,"Email Address"]
[]
[null,null,null,null,null,null,null,null,null,null,null,null,null,null,null,null,null,null,null,null,null,"Business Type:",null,null,null,null,null,null,null,null,null,null,null,null,null,null,null,null,null,null,null,0]
[null,null,null,null,null,null,null,null,null,null,null,null,null,null,null,null,null,null,null,null,null,"Participant Role:",null,null,null,null,null,null,null,null,null,null,null,null,null,null,null,null,null,null,null,0]
[null,null,null,null,null,null,null,null,null,null,null,null,null,null,null,null,null,null,null,null,null,"New Multifamily Project Type"]
[]
[]
[]
[]
[null,null,null,null,null,null,null,null,null,null,null,null,null,null,null,null,null,null,null,null,null,"Trade Ally/Contractor/Installer Company Name (if applicable)"]
[]
[null,null,null,null,null,null,null,null,null,null,null,null,null,null,null,null,null,null,null,null,null,"Utility Information "]
[]
[null,null,null,null,null,null,null,null,null,null,null,null,null,null,null,null,null,null,null,null,null,"(You must attach a copy of your most recent utility bill)"]
[null,null,null,null,null,null,null,null,null,null,null,null,null,null,null,null,null,null,null,null,null,"NW Natural Account #:"]
[]
[]
[null,null,null,null,null,null,null,null,null,null,null,null,null,null,null,null,null,null,null,null,null,"Rate Schedule:"]
[]
[]
[]
[null,"Project and Facility Information",null,null,null,null,null,null,null,null,null,null,null,null,null,null,null,null,null,null,null,"Primary Heating Fuel Source"]
[]
[null,null,null,null,null,null,null,null,null,null,null,null,null,null,null,null,null,null,null,null,null,null,null,null,null,null,null,null,null,null,null,null,null,null,null,null,null,null,null,null,null,0,{"$f":"VLOOKUP($AP50,Fuel,2)","v":"None"}]
[null,"Site Address",null,null,null,null,null,null,null,"City",null,null,null,"State",null,null,"Zip",null,null,null,null,"Water Heating Fuel Source"]
[null,null,null,null,null,null,null,null,null,null,null,null,null,null,null,null,null,null,null,null,null,null,null,null,null,null,null,null,null,null,null,null,null,null,null,null,null,null,null,null,null,0,{"$f":"VLOOKUP($AP52,Fuel,2)","v":"None"}]
[null,"Contact name for Site Visit",null,null,null,null,null,null,null,null,null,"Phone number for Site Visit"]
[null,"If requesting incentives for multiple locations,use the Multiple SItes section to list each location's site address, utility infomation, and heating fuel sources"]
[]
[null,"Project Square Footage",null,null,null,null,null,null,null,null,null,"Market Type:"]
[]
[null,"Building Square Footage",null,null,null,null,null,null,null,null,null,"Buidling Style:"]
[]
[null,"Year Built"]
[]
[null,"Participant Signature Please sign below either manually (ex. handwritten) or electronically (ex. typing your name, drawing your signature on a touchpad or touchscreen, inserting a digital signature, or, if available, by clicking the box)."]
[]
[]
[null,null,null,null,null,null,null,null,null,null,null,null,null,null,null,null,null,{"$f":"IF(ContactName=\"\",\"\",ContactName)","v":""}]
[null,null,"Authorized Representative Signature",null,null,null,null,null,null,null,null,null,null,null,null,null,null,"Name (printed)",null,null,null,null,null,null,null,null,null,null,null,null,null,null,null,null,"Date"]
[]
[]
[null,"Grant Funding"]
[null,"Did you receive any other external funding, such as grants, that reduced your final out-of-pocket purchase/installation costs for any energy saving equipment listed in this application (See Project Cost Documentation for more information)?"]
[]
[null,"If yes, what is the total amount of external funding, Include additional information with submitted invoices."]
[]
[null,"TERMS AND CONDITIONS"]

{"sheet":"Multiple Sites","index":1,"n_rows":113,"n_cols":12,"rows_kept":113,"cut":false,"hidden":false,"merged":[]}
[]
["New Multifamily Standard Incentives - NW Natural Washington"]
["Commercial Buildings | Incentive Application | Form 120P-WA-NMF"]
[]
["To be completed by Participant"]
[]
["TRC is a Program Management Contractor for Energy Trust of Oregon.",null,null,null,null,null,null,null,"Program Use Only",null,null,{"$f":"Version","v":"v2024.2"}]
[null,null,null,null,null,null,null,null,"Reference ID",{"$f":"IF(ReferenceID=\"\",\"\",ReferenceID)","v":""},"PT ID",{"$f":"IF(PTID=\"\",\"\",PTID)","v":""}]
["Multiple Sites"]
["Location\n(Bldg Name / Store #)","Site Address","City","State","Zip","Electric Utility","Electric Account Number","Gas Utility","Gas Account Number","Gas Rate Schedule","Primary Heating \nFuel Source","Water Heating \nFuel Source"]
[null,null,null,null,null,"(select)",null,"(select)",null,null,"(select)","(select)"]
[null,null,null,null,null,"(select)",null,"(select)",null,null,"(select)","(select)"]
[null,null,null,null,null,"(select)",null,"(select)",null,null,"(select)","(select)"]
[null,null,null,null,null,"(select)",null,"(select)",null,null,"(select)","(select)"]
[null,null,null,null,null,"(select)",null,"(select)",null,null,"(select)","(select)"]
[null,null,null,null,null,"(select)",null,"(select)",null,null,"(select)","(select)"]
[null,null,null,null,null,"(select)",null,"(select)",null,null,"(select)","(select)"]
[null,null,null,null,null,"(select)",null,"(select)",null,null,"(select)","(select)"]
[null,null,null,null,null,"(select)",null,"(select)",null,null,"(select)","(select)"]
[null,null,null,null,null,"(select)",null,"(select)",null,null,"(select)","(select)"]
[null,null,null,null,null,"(select)",null,"(select)",null,null,"(select)","(select)"]
[null,null,null,null,null,"(select)",null,"(select)",null,null,"(select)","(select)"]
[null,null,null,null,null,"(select)",null,"(select)",null,null,"(select)","(select)"]
[null,null,null,null,null,"(select)",null,"(select)",null,null,"(select)","(select)"]
[null,null,null,null,null,"(select)",null,"(select)",null,null,"(select)","(select)"]
[null,null,null,null,null,"(select)",null,"(select)",null,null,"(select)","(select)"]
[null,null,null,null,null,"(select)",null,"(select)",null,null,"(select)","(select)"]
[null,null,null,null,null,"(select)",null,"(select)",null,null,"(select)","(select)"]
[null,null,null,null,null,"(select)",null,"(select)",null,null,"(select)","(select)"]
[null,null,null,null,null,"(select)",null,"(select)",null,null,"(select)","(select)"]
[null,null,null,null,null,"(select)",null,"(select)",null,null,"(select)","(select)"]
[null,null,null,null,null,"(select)",null,"(select)",null,null,"(select)","(select)"]
[null,null,null,null,null,"(select)",null,"(select)",null,null,"(select)","(select)"]
[null,null,null,null,null,"(select)",null,"(select)",null,null,"(select)","(select)"]
[null,null,null,null,null,"(select)",null,"(select)",null,null,"(select)","(select)"]
[null,null,null,null,null,"(select)",null,"(select)",null,null,"(select)","(select)"]
[null,null,null,null,null,"(select)",null,"(select)",null,null,"(select)","(select)"]
[null,null,null,null,null,"(select)",null,"(select)",null,null,"(select)","(select)"]
[null,null,null,null,null,"(select)",null,"(select)",null,null,"(select)","(select)"]
[null,null,null,null,null,"(select)",null,"(select)",null,null,"(select)","(select)"]
[null,null,null,null,null,"(select)",null,"(select)",null,null,"(select)","(select)"]
[null,null,null,null,null,"(select)",null,"(select)",null,null,"(select)","(select)"]
[null,null,null,null,null,"(select)",null,"(select)",null,null,"(select)","(select)"]
[null,null,null,null,null,"(select)",null,"(select)",null,null,"(select)","(select)"]
[null,null,null,null,null,"(select)",null,"(select)",null,null,"(select)","(select)"]
[null,null,null,null,null,"(select)",null,"(select)",null,null,"(select)","(select)"]
[null,null,null,null,null,"(select)",null,"(select)",null,null,"(select)","(select)"]
[null,null,null,null,null,"(select)",null,"(select)",null,null,"(select)","(select)"]
[null,null,null,null,null,"(select)",null,"(select)",null,null,"(select)","(select)"]
[null,null,null,null,null,"(select)",null,"(select)",null,null,"(select)","(select)"]
[null,null,null,null,null,"(select)",null,"(select)",null,null,"(select)","(select)"]
[null,null,null,null,null,"(select)",null,"(select)",null,null,"(select)","(select)"]
[null,null,null,null,null,"(select)",null,"(select)",null,null,"(select)","(select)"]
[null,null,null,null,null,"(select)",null,"(select)",null,null,"(select)","(select)"]
[null,null,null,null,null,"(select)",null,"(select)",null,null,"(select)","(select)"]
[null,null,null,null,null,"(select)",null,"(select)",null,null,"(select)","(select)"]
[null,null,null,null,null,"(select)",null,"(select)",null,null,"(select)","(select)"]
[null,null,null,null,null,"(select)",null,"(select)",null,null,"(select)","(select)"]
[null,null,null,null,null,"(select)",null,"(select)",null,null,"(select)","(select)"]
[null,null,null,null,null,"(select)",null,"(select)",null,null,"(select)","(select)"]
[null,null,null,null,null,"(select)",null,"(select)",null,null,"(select)","(select)"]
[null,null,null,null,null,"(select)",null,"(select)",null,null,"(select)","(select)"]
[null,null,null,null,null,"(select)",null,"(select)",null,null,"(select)","(select)"]
[null,null,null,null,null,"(select)",null,"(select)",null,null,"(select)","(select)"]
[null,null,null,null,null,"(select)",null,"(select)",null,null,"(select)","(select)"]
[null,null,null,null,null,"(select)",null,"(select)",null,null,"(select)","(select)"]
[null,null,null,null,null,"(select)",null,"(select)",null,null,"(select)","(select)"]
[null,null,null,null,null,"(select)",null,"(select)",null,null,"(select)","(select)"]
[null,null,null,null,null,"(select)",null,"(select)",null,null,"(select)","(select)"]
[null,null,null,null,null,"(select)",null,"(select)",null,null,"(select)","(select)"]
[null,null,null,null,null,"(select)",null,"(select)",null,null,"(select)","(select)"]
[null,null,null,null,null,"(select)",null,"(select)",null,null,"(select)","(select)"]
[null,null,null,null,null,"(select)",null,"(select)",null,null,"(select)","(select)"]
[null,null,null,null,null,"(select)",null,"(select)",null,null,"(select)","(select)"]
[null,null,null,null,null,"(select)",null,"(select)",null,null,"(select)","(select)"]
[null,null,null,null,null,"(select)",null,"(select)",null,null,"(select)","(select)"]
[null,null,null,null,null,"(select)",null,"(select)",null,null,"(select)","(select)"]
[null,null,null,null,null,"(select)",null,"(select)",null,null,"(select)","(select)"]
[null,null,null,null,null,"(select)",null,"(select)",null,null,"(select)","(select)"]
[null,null,null,null,null,"(select)",null,"(select)",null,null,"(select)","(select)"]
[null,null,null,null,null,"(select)",null,"(select)",null,null,"(select)","(select)"]
[null,null,null,null,null,"(select)",null,"(select)",null,null,"(select)","(select)"]
[null,null,null,null,null,"(select)",null,"(select)",null,null,"(select)","(select)"]
[null,null,null,null,null,"(select)",null,"(select)",null,null,"(select)","(select)"]
[null,null,null,null,null,"(select)",null,"(select)",null,null,"(select)","(select)"]
[null,null,null,null,null,"(select)",null,"(select)",null,null,"(select)","(select)"]
[null,null,null,null,null,"(select)",null,"(select)",null,null,"(select)","(select)"]
[null,null,null,null,null,"(select)",null,"(select)",null,null,"(select)","(select)"]
[null,null,null,null,null,"(select)",null,"(select)",null,null,"(select)","(select)"]
[null,null,null,null,null,"(select)",null,"(select)",null,null,"(select)","(select)"]
[null,null,null,null,null,"(select)",null,"(select)",null,null,"(select)","(select)"]
[null,null,null,null,null,"(select)",null,"(select)",null,null,"(select)","(select)"]
[null,null,null,null,null,"(select)",null,"(select)",null,null,"(select)","(select)"]
[null,null,null,null,null,"(select)",null,"(select)",null,null,"(select)","(select)"]
[null,null,null,null,null,"(select)",null,"(select)",null,null,"(select)","(select)"]
[null,null,null,null,null,"(select)",null,"(select)",null,null,"(select)","(select)"]
[null,null,null,null,null,"(select)",null,"(select)",null,null,"(select)","(select)"]
[null,null,null,null,null,"(select)",null,"(select)",null,null,"(select)","(select)"]
[null,null,null,null,null,"(select)",null,"(select)",null,null,"(select)","(select)"]
[null,null,null,null,null,"(select)",null,"(select)",null,null,"(select)","(select)"]
[null,null,null,null,null,"(select)",null,"(select)",null,null,"(select)","(select)"]
[null,null,null,null,null,"(select)",null,"(select)",null,null,"(select)","(select)"]
[null,null,null,null,null,"(select)",null,"(select)",null,null,"(select)","(select)"]
[null,null,null,null,null,"(select)",null,"(select)",null,null,"(select)","(select)"]
[null,null,null,null,null,"(select)",null,"(select)",null,null,"(select)","(select)"]
[null,null,null,null,null,"(select)",null,"(select)",null,null,"(select)","(select)"]
[null,null,null,null,null,"(select)",null,"(select)",null,null,"(select)","(select)"]
[null,null,null,null,null,"(select)",null,"(select)",null,null,"(select)","(select)"]
[null,null,null,null,null,"(select)",null,"(select)",null,null,"(select)","(select)"]
[null,null,null,null,null,"(select)",null,"(select)",null,null,"(select)","(select)"]
[null,null,null,null,null,"(select)",null,"(select)",null,null,"(select)","(select)"]
[null,null,null,null,null,"(select)",null,"(select)",null,null,"(select)","(select)"]
[null,null,null,null,null,"(select)",null,"(select)",null,null,"(select)","(select)"]

{"sheet":"Option to Assign Payment","index":2,"n_rows":30,"n_cols":33,"rows_kept":30,"cut":false,"hidden":false,"merged":[[15,1,16,32],[9,15,9,17],[9,18,9,23],[9,24,9,26],[9,27,9,32],[11,1,12,32],[20,8,20,31],[20,1,21,7],[21,8,21,31],[20,32,21,32],[17,1,17,32],[18,1,19,7],[18,8,18,16],[18,18,18,27],[18,29,18,31],[19,8,19,16],[19,18,19,27],[19,29,19,31],[25,8,25,31],[25,1,26,7],[25,32,26,32],[23,1,24,7],[23,8,23,16],[23,18,23,27],[23,29,23,31],[24,8,24,16],[24,18,24,27],[24,29,24,31],[26,8,26,31],[29,22,30,31],[29,32,30,32],[29,1,30,3],[29,4,30,9],[29,20,30,21],[27,1,28,5],[27,6,27,15],[27,17,27,24],[27,26,27,27],[27,29,27,31],[28,6,28,12]]}
[]
[null,"New Multifamily Standard Incentives - NW Natural Washington"]
[null,"Commercial Buildings | Option to Assign Payment | Form 120P-WA-NMF"]
[]
[null,"To be completed by Participant"]
[]
[null,"TRC is a Program Management Contractor for Energy Trust of Oregon."]
[]
[null,null,null,null,null,null,null,null,null,null,null,null,null,null,null,"Program Use Only",null,null,null,null,null,null,null,null,null,null,null,null,null,null,null,null,{"$f":"Version","v":"v2024.2"}]
[null,null,null,null,null,null,null,null,null,null,null,null,null,null,null,"Reference ID",null,null,{"$f":"IF(ReferenceID=\"\",\"\",ReferenceID)","v":""},null,null,null,null,null,"PT ID",null,null,{"$f":"IF(PTID=\"\",\"\",PTID)","v":""}]
[]
[null,"Option to Assign Incentive Payment\nPLEASE NOTE: The Energy Trust incentive payment will be made to Participant unless Participant and its designated Payee complete the section below to assign the payment to Payee. An IRS Form W-9 (Request for Taxpayer Identification Number and Certification) for the Payee named below must be attached if this option is selected."]
[]
[]
[null,"PARTICIPANT AND PAYEE"]
[null,"Both Participant and Payee understand and agree that if this Option to Assign Incentive Payment is selected the incentive check will be issued to the Payee named below at the address listed below and Energy Trust is not responsible for any tax liabilities that may be associated with the incentive payment. In addition, Participant understands that, notwithstanding this assignment, responsibility for complying with the terms and conditions of this incentive agreement shall continue to be the obligation of Participant, and Energy Trust's sole responsibility under this incentive agreement shall be to Participant. Accordingly, Payee understands that it shall have no rights against Energy Trust or the PMC with respect to such assignment or the payment of the incentive, and in the event that Energy Trust does not pay the incentive as a result of Participant's failure to comply with this agreement, Payee's sole recourse shall be against Participant. Participant directs Energy Trust to pay any incentive to which it is entitled to the Payee named below and waives all rights to directly receive the Energy Trust incentives for the identified energy-efficiency project. "]
[]
[null,"SIGNATURES: By my signature below, I represent to Energy Trust that I have read this agreement and am duly authorized to sign this Option to Assign Incentive Payment on behalf of the party for whom I am signing."]
[null,"On behalf of Participant\n(Authorized Representative)"]
[null,null,null,null,null,null,null,null,"(printed)",null,null,null,null,null,null,null,null,null,"(signature)",null,null,null,null,null,null,null,null,null,null,"Date"]
[null,"Participant",null,null,null,null,null,null,{"$f":"IF(BusinessName=\"\",\"\",BusinessName)","v":""}]
[null,null,null,null,null,null,null,null,"(Legal business name as shown on W9)"]
[]
[null,"On behalf of Payee\n(Authorized Representative)"]
[null,null,null,null,null,null,null,null,"(printed)",null,null,null,null,null,null,null,null,null,"(signature)",null,null,null,null,null,null,null,null,null,null,"Date"]
[null,"Payee Name"]
[null,null,null,null,null,null,null,null,"(Must match submitted IRS Form W-9)"]
[null,"Mailing Address\n(for check)"]
[null,null,null,null,null,null,"Street",null,null,null,null,null,null,null,null,null,null,"City",null,null,null,null,null,null,null,null,"State",null,null,"Zip"]
[null,"Phone",null,null,null,null,null,null,null,null,null,null,null,null,null,null,null,null,null,null,"Email"]

{"sheet":"HVAC & Water Heating Equipment","index":3,"n_rows":51,"n_cols":12,"rows_kept":51,"cut":false,"hidden":false,"merged":[[33,8,33,11],[34,2,34,7],[35,2,35,7],[36,2,36,7],[37,2,37,7],[27,2,27,7],[25,2,25,7],[32,2,32,7],[18,1,21,1],[16,8,16,11],[23,1,24,1],[18,8,21,8],[18,9,21,9],[18,10,21,10],[18,11,21,11],[24,2,24,7],[10,2,10,7],[22,2,22,7],[18,2,18,7],[23,2,23,7],[19,2,19,7],[20,4,20,5],[49,1,50,9],[11,1,14,1],[11,2,11,7],[11,8,11,11],[12,2,12,7],[13,2,13,7],[14,2,14,7],[15,1,16,1],[15,2,15,7],[17,2,17,7],[16,2,16,7],[47,2,47,7],[45,2,45,7],[46,2,46,7],[39,8,43,11],[42,2,42,4],[39,1,47,1],[31,2,31,7],[44,2,44,7],[40,2,40,3],[41,2,41,3],[39,2,39,7],[33,1,38,1],[33,2,33,7],[38,2,38,7]]}
[]
[null,"New Multifamily Standard Incentives - NW Natural Washington"]
[null,"Commercial Buildings | Incentive Application | Form 120P-WA-NMF"]
[]
[]
[]
[null,"TRC is a Program Management Contractor for Energy Trust of Oregon.",null,null,null,null,null,null,"Program Use Only",null,null,{"$f":"Version","v":"v2024.2"}]
[null,null,null,null,null,null,null,null,"Reference ID",{"$f":"IF(ReferenceID=\"\",\"\",ReferenceID)","v":""},"PTID",{"$f":"IF(PTID=\"\",\"\",PTID)","v":""}]
[]
[null,"HVAC and Water Heating"]
[null,"EQUIPMENT","REQUIREMENTS",null,null,null,null,null,"INCENTIVE PER UNIT","QUANTITY","INCENTIVE TOTAL","INSTALLED COST"]
[null," Condensing\n Furnace"]
[null,null,"91% efficiency rating",null,null,null,null,null,1.5,null,{"$f":"I13*J13","v":0},0]
[null,null,"95% efficiency rating",null,null,null,null,null,2,null,{"$f":"I14*J14","v":0},0]
[null,null,"98% efficiency rating",null,null,null,null,null,3,null,{"$f":"I15*J15","v":0},0]
[null,"New Rooftop Unit (RTU) with Demand Control Ventilation (DCV)",null,null,null,null,null,null,29,null,{"$f":"I16*J16","v":0},0]
[null,null,"*Describe the space that the RTU will serve:\n (contact Energy Trust for eligible space types)"]
[null,"Commercial Condensing Tank Water Heater",null,null,null,null,null,null,3.5,null,{"$f":"I18*J18","v":0},0]
[null," Condensing\n Tankless Water \n Heater\n under 200 kBtu/h\n input",null,null,null,null,null,null,140,null,{"$f":"I19*J19","v":0},0]
[null,null,"Is there an existing water storage tank attached?"]
[null,null,null,null,"If yes, what is the capacity?"]
[]
[null," Commercial\n Condensing\n Tankless Water\n Heater/Boiler\n at least 200 kBtu/h\n input",null,null,null,null,null,null,1.4,null,{"$f":"I23*J23","v":0}]
[null," Gas-fired High-\n Efficiency\n Condensing HVAC\n Boiler",null,null,null,null,null,null,6.5,null,0]
[null,null,null,null,null,null,null,null,0.01,null,0]
[null," ENERGY STAR®\n Commercial\n Clothes Washer,\n Common Areas",null,null,null,null,null,null,100,null,0,0]
[null," ENERGY STAR\n Clothes Washer,\n Laundry Center",null,null,null,null,null,null,45,null,0]
[null," ENERGY STAR\n Clothes Washer,\n In-Unit",null,null,null,null,null,null,30,null,0,0]
[]
[]
[null,"HVAC and Water Heating continued"]
[null,"EQUIPMENT","REQUIREMENTS",null,null,null,null,null,"INCENTIVE PER UNIT","QUANTITY","INCENTIVE TOTAL","INSTALLED COST"]
[null,"Two-stage Gas Valve on Clothes Dryers",null,null,null,null,null,null,200,null,{"$f":"I33*J33","v":0}]
[null,"Ozone Laundry Systems "]
[null,null,"Total laundry capacity is less than 75 lbs:",null,null,null,null,null,5000,null,{"$f":"I35*J35","v":0}]
[null,null,"Total laundry capacity is between 75 and 125 lbs:",null,null,null,null,null,7500,null,0]
[null,null,"Total laundry capacity is between 126 and 400 lbs:",null,null,null,null,null,15000,null,0]
[null,null,"Total laundry capacity is between 401 and 600 lbs:",null,null,null,null,null,25000,null,0]
[null,null,"Total laundry capacity is greater than 600 lbs:",null,null,null,null,null,30000,null,0]
[null,"Commercial Swimming Pool Heater"]
[null,null,"   Pool Location: "]
[null,null,"   Pool Cover:"]
[null,null,"   Number of heaters serving pool: "]
[]
[null,null,"Non-condensing Heater, Covered",null,null,null,null,null,0.9,null,{"$f":"I45*J45","v":0}]
[null,null,"Non-condensing Heater, Not Covered",null,null,null,null,null,1,null,{"$f":"I46*J46","v":0}]
[null,null,"Condensing Heater, Covered",null,null,null,null,null,3,null,0]
[null,null,"Condensing Heater, Not Covered",null,null,null,null,null,5,null,0]
[]
[null,"TOTALS FOR HVAC AND WATER HEATING",null,null,null,null,null,null,null,null,"TOTAL \nINCENTIVES","TOTAL\nINSTALLED COST"]
[null,null,null,null,null,null,null,null,null,null,{"$f":"SUM(K13:K16,K18:K25,K26:K28,K45:K48,K33,K35:K39)","v":0},{"$f":"SUM(L13:L16,L18:L25,L26:L28,L45:L48,L33,L35:L39)","v":0}]

{"sheet":"Foodservice Equipment","index":4,"n_rows":36,"n_cols":9,"rows_kept":36,"cut":false,"hidden":false,"merged":[[31,6,32,6],[31,7,32,7],[31,2,32,3],[10,2,10,3],[22,2,22,3],[23,2,23,3],[24,2,24,3],[25,2,25,3],[19,2,21,3],[17,5,18,5],[17,6,18,6],[17,7,18,7],[13,2,15,3],[34,1,35,5],[11,2,11,3],[29,2,29,3],[26,2,26,3],[16,2,18,3],[26,1,32,1],[31,5,32,5],[11,4,12,7],[12,2,12,3],[14,5,15,5],[14,6,15,6],[14,7,15,7],[11,1,21,1],[20,5,21,5],[20,6,21,6],[20,7,21,7]]}
[]
[null,"New Multifamily Standard Incentives - NW Natural Washington"]
[null,"Commercial Buildings | Incentive Application | Form 120P-WA-NMF"]
[]
[]
[]
[null,"TRC is a Program Management Contractor for Energy Trust of Oregon.",null,null,"Program Use Only",null,null,{"$f":"Version","v":"v2024.2"}]
[null,null,null,null,"Reference ID",{"$f":"IF(ReferenceID=\"\",\"\",ReferenceID)","v":""},"PTID",{"$f":"IF(PTID=\"\",\"\",PTID)","v":""}]
[]
[null,"Foodservice"]
[null,"EQUIPMENT","REQUIREMENTS",null,"INCENTIVE PER UNIT","QUANTITY","INCENTIVE TOTAL","INSTALLED COST"]
[null,"Gas-fired Automatic Conveyor Broiler"]
[]
[null,null,"Total conveyor belt width less than 20”",null,2500,null,{"$f":"E14*F14","v":0},0]
[null,null,null,null,"Bonus incentive:",null,{"$f":"E16*F15","v":0}]
[null,null,null,null,485]
[null,null,"Total conveyor belt width 20” to 26”",null,3000,null,0,0]
[null,null,null,null,"Bonus incentive:",null,{"$f":"E19*F18","v":0}]
[null,null,null,null,485]
[null,null,"Total conveyor belt width greater than 26”",null,3500,null,0,0]
[null,null,null,null,"Bonus incentive:",null,{"$f":"E22*F21","v":0}]
[null,null,null,null,575]
[null,"Gas Convection Oven",null,null,315,null,0,0]
[null,"Gas Combination Oven",null,null,750,null,0]
[null,"Single Rack Gas Oven",null,null,1500,null,0,0]
[null,"Double Rack Gas  Oven",null,null,2000,null,0,0]
[null,"Gas Steam Cooker",null,null,3400,null,0,0]
[]
[]
[null,null,"REQUIREMENTS",null,"INCENTIVE PER UNIT","QUANTITY","INCENTIVE TOTAL","INSTALLED COST"]
[]
[null,null,null,null,"Bonus incentive:",null,{"$f":"E33*F32","v":0},0,"Removed gas steam cooker bonus"]
[null,null,null,null,1000]
[]
[null,"TOTALS FOR FOODSERVICE",null,null,null,null,"TOTAL REQUESTED\nINCENTIVES","TOTAL\nINSTALLED COST"]
[null,null,null,null,null,null,{"$f":"SUM(G14:G27)","v":0},{"$f":"SUM(H14:H27)","v":0}]

{"sheet":"Admin Tools","index":5,"n_rows":0,"n_cols":0,"rows_kept":0,"cut":false,"hidden":false,"merged":[]}

{"sheet":"Eligible Spaces","index":6,"n_rows":25,"n_cols":1,"rows_kept":25,"cut":false,"hidden":true,"merged":[]}
["(Select)"]
["Arcade"]
["Art classroom"]
["Bank vaults/safe deposit room"]
["Coin-operated Laundromat"]
["Commercial Laundromat"]
["Computer room (without printing)"]
["Copy/printing room"]
["Grocery Store"]
["Guard Stations"]
["Health club/weight room"]
["Hotel Rooms"]
["Library"]
["Main entry lobby"]
["Medical operating room"]
["Medical procedure room"]
["Office spaces"]
["Other"]
["Patient room"]
["Pet shop (animal areas) "]
["Photo studio"]
["Physical therapy"]
["Recovery and ICU area"]
["Sales floor (except mall common areas)"]
["Wood/metal shop"]

{"sheet":"Lookups","index":7,"n_rows":54,"n_cols":2,"rows_kept":54,"cut":false,"hidden":true,"merged":[]}
["Heat"]
[0,"None"]
[1,"Electric"]
[2,"Gas"]
[3,"Other"]
[]
[]
["Building Use Type"]
["(select)"]
["Assembly"]
["Athletic Club"]
["Auto Services"]
["College/University"]
["Data Center"]
["Grocery"]
["Hospital"]
["Laundry / Dry Cleaners"]
["Lodging / Hotel / Motel"]
["Manufacturing"]
["Multifamily / Residential"]
["Office"]
["Other"]
["Parking Structure"]
["Religious / Spiritual"]
["Restaurant"]
["Retail"]
["Retirement Home"]
["Schools K-12"]
["Warehouse"]
[]
[]
["Electric Utility"]
["(select)"]
["PGE"]
["Pacific Power"]
["Other"]
[]
["Gas Utility"]
["(select)"]
["NWN"]
["Other"]
[]
["Fuel Source"]
["(select)"]
["Electricity"]
["Gas"]
["Other"]
[]
["Project Type"]
[1,"Existing Buildings"]
[2,"New Buildings"]
[3,"Existing Multifamily Buildings"]
[4,"New Multifamily Buildings"]
[5,"Greenhouses"]